fUST/lending_fUST_20260515
["ID","MTS","AMOUNT","RATE_DAILY","PERIOD"]
[422317820,1778818242000,-500.0,0.00010958,2]
[422317810,1778818242000,-500.0,0.00010958,2]
[422317802,1778818242000,-6320.52,0.00010958,2]
[422317809,1778818242000,-500.0,0.00010958,2]
[422317790,1778818242000,-500.0,0.00010958,2]
[422317793,1778818242000,-500.0,0.00010958,2]
[422317792,1778818242000,-500.0,0.00010958,2]
[422317791,1778818242000,-315.61270852,0.00010958,2]
[422317794,1778818242000,-500.0,0.00010958,2]
[422317795,1778818242000,-1826.97,0.00010958,2]
[422317796,1778818242000,-623.07,0.00010958,2]
[422317798,1778818242000,-500.0,0.00010958,2]
[422317799,1778818242000,-500.0,0.00010958,2]
[422317800,1778818242000,-602.01,0.00010958,2]
[422317801,1778818242000,-500.0,0.00010958,2]
[422317829,1778818242000,-1717.76,0.00010958,2]
[422317804,1778818242000,-539.8,0.00010958,2]
[422317805,1778818242000,-500.0,0.00010958,2]
[422317803,1778818242000,-500.0,0.00010958,2]
[422317806,1778818242000,-500.0,0.00010958,2]
[422317812,1778818242000,-500.0,0.00010958,2]
[422317808,1778818242000,-1506.44,0.00010958,2]
[422317830,1778818242000,-500.0,0.00010958,2]
[422317797,1778818242000,-500.0,0.00010958,2]
[422317832,1778818242000,-320.93606236,0.00010958,2]
[422317854,1778818242000,-224.49284676,0.00010958,2]
[422317860,1778818242000,-611.6,0.00010958,2]
[422317855,1778818242000,-500.0,0.00010958,2]
[422317859,1778818242000,-500.0,0.00010958,2]
[422317856,1778818242000,-500.0,0.00010958,2]
[422317858,1778818242000,-500.0,0.00010958,2]
[422317862,1778818242000,-841.5,0.00010958,2]
[422317863,1778818242000,-716.85,0.00010958,2]
[422317852,1778818242000,-598.67,0.00010958,2]
[422317864,1778818242000,-500.0,0.00010958,2]
[422317870,1778818242000,-2269.43,0.00010958,2]
[422317866,1778818242000,-2653.83,0.00010958,2]
[422317873,1778818242000,-506.47438734,0.00010958,2]
[422317867,1778818242000,-757.39,0.00010958,2]
[422317868,1778818242000,-500.0,0.00010958,2]
[422317871,1778818242000,-2775.84,0.00010958,2]
[422317869,1778818242000,-500.0,0.00010958,2]
[422317831,1778818242000,-518.41,0.00010958,2]
[422317865,1778818242000,-500.0,0.00010958,2]
[422317857,1778818242000,-862.46,0.00010958,2]
[422317872,1778818242000,-500.0,0.00010958,2]
[422317861,1778818242000,-500.0,0.00010958,2]
[422317853,1778818242000,-500.0,0.00010958,2]
[422317833,1778818242000,-595.11,0.00010958,2]
[422317836,1778818242000,-500.0,0.00010958,2]
[422317834,1778818242000,-500.50273605,0.00010958,2]
[422317835,1778818242000,-500.0,0.00010958,2]
[422317838,1778818242000,-500.0,0.00010958,2]
[422317845,1778818242000,-500.0,0.00010958,2]
[422317839,1778818242000,-500.0,0.00010958,2]
[422317841,1778818242000,-768.59,0.00010958,2]
[422317837,1778818242000,-751.85,0.00010958,2]
[422317843,1778818242000,-3427.38,0.00010958,2]
[422317849,1778818242000,-500.0,0.00010958,2]
[422317847,1778818242000,-1013.87871284,0.00010958,2]
[422317848,1778818242000,-500.0,0.00010958,2]
[422317846,1778818242000,-500.0,0.00010958,2]
[422317844,1778818242000,-500.0,0.00010958,2]
[422317840,1778818242000,-500.0,0.00010958,2]
[422317851,1778818242000,-8954.28,0.00010958,2]
[422317850,1778818242000,-500.0,0.00010958,2]
[422317899,1778818243000,-500.0,0.00010958,2]
[422317890,1778818243000,-3177.15,0.00010958,2]
[422317891,1778818243000,-500.0,0.00010958,2]
[422317898,1778818243000,-500.0,0.00010958,2]
[422317900,1778818243000,-273.53244893,0.00010958,2]
[422317888,1778818243000,-500.0,0.00010958,2]
[422317896,1778818243000,-500.0,0.00010958,2]
[422317894,1778818243000,-8651.92,0.00010958,2]
[422317889,1778818243000,-587.61,0.00010958,2]
[422317893,1778818243000,-500.0,0.00010958,2]
[422317887,1778818243000,-2801.16,0.00010958,2]
[422317886,1778818243000,-500.0,0.00010958,2]
[422317884,1778818243000,-1968.05,0.00010958,2]
[422317881,1778818243000,-500.0,0.00010958,2]
[422317883,1778818243000,-500.0,0.00010958,2]
[422317882,1778818243000,-500.0,0.00010958,2]
[422317880,1778818243000,-898.69,0.00010958,2]
[422317877,1778818243000,-500.0,0.00010958,2]
[422317879,1778818243000,-500.0,0.00010958,2]
[422317878,1778818243000,-500.0,0.00010958,2]
[422317875,1778818243000,-1633.23,0.00010958,2]
[422317876,1778818243000,-501.71667182,0.00010958,2]
[422317874,1778818243000,-500.0,0.00010958,2]
[422317895,1778818243000,-500.78685709,0.00010958,2]
[422317885,1778818243000,-510.76514177,0.00010958,2]
[422317892,1778818243000,-500.0,0.00010958,2]
[422317906,1778818243000,-500.0,0.00010958,2]
[422317902,1778818243000,-920.31451581,0.00010958,2]
[422317897,1778818243000,-626.28830262,0.00010958,2]
[422317923,1778818243000,-500.0,0.00010958,2]
[422317926,1778818243000,-500.0,0.00010958,2]
[422317919,1778818243000,-500.0,0.00010958,2]
[422317922,1778818243000,-500.0,0.00010958,2]
[422317924,1778818243000,-532.11,0.00010958,2]
[422317925,1778818243000,-505.31297929,0.00010958,2]
[422317918,1778818243000,-3584.62,0.00010958,2]
[422317917,1778818243000,-500.0,0.00010958,2]
[422317920,1778818243000,-500.0,0.00010958,2]
[422317916,1778818243000,-501.34562814,0.00010958,2]
[422317915,1778818243000,-501.88035274,0.00010958,2]
[422317921,1778818243000,-539.62626414,0.00010958,2]
[422317913,1778818243000,-7019.38,0.00010958,2]
[422317901,1778818243000,-500.0,0.00010958,2]
[422317912,1778818243000,-503.51470548,0.00010958,2]
[422317903,1778818243000,-5000.0,8.1e-05,2]
[422317905,1778818243000,-500.0,0.00010958,2]
[422317911,1778818243000,-501.53695959,0.00010958,2]
[422317907,1778818243000,-500.0,0.00010958,2]
[422317909,1778818243000,-361.48097167,0.00010958,2]
[422317904,1778818243000,-1958.63548419,0.00010958,2]
[422317908,1778818243000,-6235.64,0.00010958,2]
[422317910,1778818243000,-500.0,0.00010958,2]
[422317914,1778818243000,-500.0,0.00010958,2]
[422317932,1778818244000,-569.48,0.00010958,2]
[422317934,1778818244000,-500.0,0.00010958,2]
[422317931,1778818244000,-500.0,0.00010958,2]
[422317939,1778818244000,-500.0,0.00010958,2]
[422317933,1778818244000,-1729.32,0.00010958,2]
[422317927,1778818244000,-500.0,0.00010958,2]
[422317940,1778818244000,-500.0,0.00010958,2]
[422317930,1778818244000,-504.32887039,0.00010958,2]
[422317928,1778818244000,-512.89532753,0.00010958,2]
[422317935,1778818244000,-500.0,0.00010958,2]
[422317929,1778818244000,-153.97928433,0.00010958,2]
[422317936,1778818244000,-500.0,0.00010958,2]
[422317949,1778818244000,-504.48598217,0.00010958,2]
[422317938,1778818244000,-514.99,0.00010958,2]
[422317946,1778818244000,-500.0,0.00010958,2]
[422317951,1778818244000,-1587.18537836,0.00010958,2]
[422317937,1778818244000,-715.32,0.00010958,2]
[422317950,1778818244000,-504.02864095,0.00010958,2]
[422317947,1778818244000,-2681.18,0.00010958,2]
[422317948,1778818244000,-1923.69,0.00010958,2]
[422317943,1778818244000,-1879.67,0.00010958,2]
[422317944,1778818244000,-640.38434553,0.00010958,2]
[422317941,1778818244000,-3524.19,0.00010958,2]
[422317942,1778818244000,-5938.65,0.00010958,2]
[422317945,1778818244000,-500.0,0.00010958,2]
[422317961,1778818246000,-500.0,0.00010958,2]
[422317955,1778818246000,-500.0,0.00010958,2]
[422317959,1778818246000,-502.97162955,0.00010958,2]
[422317954,1778818246000,-216.93462164,0.00010958,2]
[422317956,1778818246000,-500.0,0.00010958,2]
[422317957,1778818246000,-2423.06,0.00010958,2]
[422317958,1778818246000,-503.43270901,0.00010958,2]
[422317965,1778818246000,-373.24112658,0.00010958,2]
[422317960,1778818246000,-504.76691592,0.00010958,2]
[422317963,1778818246000,-1436.01,0.00010958,2]
[422317964,1778818246000,-1113.74,0.00010958,2]
[422317962,1778818246000,-505.5212642,0.00010958,2]
[422317978,1778818500000,-200.0,0.00015778,120]
[422318035,1778819431000,-670.94,8.184e-05,2]
[422318034,1778819431000,-767.38912721,8.184e-05,2]
[422318033,1778819431000,-1200.0,8.183e-05,2]
[422318032,1778819431000,-5000.0,8.102e-05,2]
[422318036,1778819432000,-2780.61893589,8.184e-05,2]
[422318038,1778819432000,-1062.9407855,8.267e-05,2]
[422318039,1778819432000,-673.65800602,8.267e-05,2]
[422318040,1778819432000,-501.0,8.267e-05,2]
[422318037,1778819432000,-781.0519369,8.184e-05,2]
[422318041,1778819432000,-2762.40120848,8.267e-05,2]
[422318047,1778819432000,-1741.10873845,9.329e-05,2]
[422318044,1778819432000,-279.94297047,8.393e-05,2]
[422318043,1778819432000,-300.0,8.392e-05,2]
[422318046,1778819432000,-420.0,9.231e-05,2]
[422318045,1778819432000,-2688.4225,8.781e-05,2]
[422318131,1778819438000,-261074.11669259,0.000103,2]
[422318144,1778819438000,-2998.01492537,0.00010425,2]
[422318129,1778819438000,-4518.22110743,0.000103,2]
[422318151,1778819438000,-4518.22110743,0.000105,2]
[422318153,1778819438000,-152.0,0.0001058,30]
[422318157,1778819438000,-4518.22110743,0.000107,2]
[422318155,1778819438000,-4518.22110743,0.000106,2]
[422318159,1778819438000,-266.00360839,0.00010739,2]
[422318165,1778819438000,-1019.84,0.000109,2]
[422318190,1778819438000,-500.0,0.00010958,2]
[422318163,1778819438000,-4518.22110743,0.000109,2]
[422318169,1778819438000,-500.0,0.00010957,2]
[422318167,1778819438000,-204.80405697,0.00010945,60]
[422318172,1778819438000,-500.0,0.00010957,2]
[422318174,1778819438000,-496.01242618,0.00010957,2]
[422318176,1778819438000,-2491.2047,0.00010958,2]
[422318181,1778819438000,-765.73868805,0.00010958,2]
[422318185,1778819438000,-14362.71980435,0.00010958,2]
[422318187,1778819438000,-248.02313065,0.00010958,2]
[422318126,1778819438000,-500.0,0.00010299,2]
[422318161,1778819438000,-4518.22110743,0.000108,2]
[422318141,1778819438000,-4518.22110743,0.000104,2]
[422318106,1778819438000,-224.301,0.0001,2]
[422318124,1778819438000,-500.0,0.00010299,2]
[422318089,1778819438000,-1046.78539405,9.329e-05,2]
[422318091,1778819438000,-185.0,9.709e-05,2]
[422318093,1778819438000,-443.0,9.709e-05,2]
[422318095,1778819438000,-500.0,9.811e-05,2]
[422318097,1778819438000,-2891.0462154,9.877e-05,2]
[422318098,1778819438000,-161.65638237,9.896e-05,2]
[422318112,1778819438000,-152.0,0.00010124,7]
[422318108,1778819438000,-156.87,0.0001,2]
[422318102,1778819438000,-160.0,9.896e-05,2]
[422318100,1778819438000,-160.0,9.896e-05,2]
[422318110,1778819438000,-4518.22110743,0.000101,2]
[422318114,1778819438000,-152.0,0.00010124,7]
[422318104,1778819438000,-4518.22110743,0.0001,2]
[422318192,1778819438000,-500.0,0.00010958,2]
[422318116,1778819438000,-152.0,0.00010127,7]
[422318117,1778819438000,-420.0,0.00010154,2]
[422318120,1778819438000,-4518.22110743,0.000102,2]
[422318122,1778819438000,-151.0,0.00010294,2]
[422318134,1778819438000,-34930.67197165,0.000103,2]
[422318136,1778819438000,-330.33270515,0.00010393,2]
[422318139,1778819438000,-204.80405697,0.00010399,60]
[422318127,1778819438000,-477.35826393,0.00010299,2]
[422318194,1778819438000,-500.0,0.00010958,2]
[422318147,1778819438000,-152.0,0.00010439,7]
[422318198,1778819438000,-500.0,0.00010958,2]
[422318264,1778819438000,-501.12517725,0.00010958,2]
[422318253,1778819438000,-500.0,0.00010958,2]
[422318251,1778819438000,-500.0,0.00010958,2]
[422318255,1778819438000,-500.0,0.00010958,2]
[422318271,1778819438000,-500.0,0.00010958,2]
[422318266,1778819438000,-500.0,0.00010958,2]
[422318260,1778819438000,-500.0,0.00010958,2]
[422318257,1778819438000,-500.0,0.00010958,2]
[422318268,1778819438000,-500.0,0.00010958,2]
[422318261,1778819438000,-500.0,0.00010958,2]
[422318270,1778819438000,-500.0,0.00010958,2]
[422318276,1778819438000,-500.0,0.00010958,2]
[422318277,1778819438000,-500.0,0.00010958,2]
[422318291,1778819438000,-42.77800271,0.00010958,2]
[422318293,1778819438000,-232.61450604,0.00010958,2]
[422318279,1778819438000,-500.0,0.00010958,2]
[422318285,1778819438000,-500.0,0.00010958,2]
[422318283,1778819438000,-500.0,0.00010958,2]
[422318281,1778819438000,-783.25,0.00010958,2]
[422318287,1778819438000,-457.22199729,0.00010958,2]
[422318196,1778819438000,-626.47119093,0.00010958,2]
[422318249,1778819438000,-500.0,0.00010958,2]
[422318247,1778819438000,-500.0,0.00010958,2]
[422318273,1778819438000,-691.81,0.00010958,2]
[422318232,1778819438000,-500.0,0.00010958,2]
[422318200,1778819438000,-646.2,0.00010958,2]
[422318245,1778819438000,-500.0,0.00010958,2]
[422318202,1778819438000,-2084.2023478,0.00010958,2]
[422318204,1778819438000,-500.0,0.00010958,2]
[422318206,1778819438000,-227.50148079,0.00010958,2]
[422318212,1778819438000,-500.0,0.00010958,2]
[422318208,1778819438000,-272.49851921,0.00010958,2]
[422318214,1778819438000,-3079.223,0.00010958,2]
[422318218,1778819438000,-520.13,0.00010958,2]
[422318216,1778819438000,-501.41713256,0.00010958,2]
[422318222,1778819438000,-582.52,0.00010958,2]
[422318210,1778819438000,-500.0,0.00010958,2]
[422318230,1778819438000,-500.0,0.00010958,2]
[422318241,1778819438000,-400.06316909,0.00010958,2]
[422318220,1778819438000,-500.0,0.00010958,2]
[422318234,1778819438000,-1071.83,0.00010958,2]
[422318239,1778819438000,-500.0,0.00010958,2]
[422318237,1778819438000,-500.0,0.00010958,2]
[422318243,1778819438000,-500.0,0.00010958,2]
[422318236,1778819438000,-1576.83,0.00010958,2]
[422318228,1778819438000,-502.22333206,0.00010958,2]
[422318226,1778819438000,-500.0,0.00010958,2]
[422318224,1778819438000,-500.0,0.00010958,2]
[422318368,1778819439000,-500.0,0.00010958,2]
[422318370,1778819439000,-1300.3,0.00010958,2]
[422318373,1778819439000,-500.0,0.00010958,2]
[422318377,1778819439000,-154.87952637,0.00010958,2]
[422318371,1778819439000,-500.0,0.00010958,2]
[422318356,1778819439000,-672.63,0.00010958,2]
[422318366,1778819439000,-498.53429149,0.00010958,2]
[422318360,1778819439000,-500.0,0.00010958,2]
[422318364,1778819439000,-589.41,0.00010958,2]
[422318358,1778819439000,-500.0,0.00010958,2]
[422318375,1778819439000,-500.0,0.00010958,2]
[422318362,1778819439000,-507.71271103,0.00010958,2]
[422318379,1778819439000,-510.05988344,0.00010958,2]
[422318399,1778819439000,-788.82,0.00010958,2]
[422318383,1778819439000,-816.11,0.00010958,2]
[422318385,1778819439000,-500.0,0.00010958,2]
[422318391,1778819439000,-2220.47,0.00010958,2]
[422318393,1778819439000,-627.2547604,0.00010958,2]
[422318395,1778819439000,-600.64,0.00010958,2]
[422318389,1778819439000,-500.0,0.00010958,2]
[422318387,1778819439000,-500.0,0.00010958,2]
[422318397,1778819439000,-500.0,0.00010958,2]
[422318406,1778819439000,-1275.46,0.00010958,2]
[422318404,1778819439000,-500.0,0.00010958,2]
[422318401,1778819439000,-500.0,0.00010958,2]
[422318408,1778819439000,-500.0,0.00010958,2]
[422318354,1778819439000,-1453.94,0.00010958,2]
[422318381,1778819439000,-500.0,0.00010958,2]
[422318352,1778819439000,-500.0,0.00010958,2]
[422318315,1778819439000,-538.27,0.00010958,2]
[422318340,1778819439000,-500.0,0.00010958,2]
[422318412,1778819439000,-215.54778587,0.00010958,2]
[422318297,1778819439000,-661.2,0.00010958,2]
[422318296,1778819439000,-267.38549396,0.00010958,2]
[422318299,1778819439000,-500.0,0.00010958,2]
[422318301,1778819439000,-500.0,0.00010958,2]
[422318303,1778819439000,-500.0,0.00010958,2]
[422318305,1778819439000,-500.0,0.00010958,2]
[422318307,1778819439000,-504.36653312,0.00010958,2]
[422318319,1778819439000,-500.0,0.00010958,2]
[422318325,1778819439000,-500.0,0.00010958,2]
[422318317,1778819439000,-1436.1,0.00010958,2]
[422318323,1778819439000,-500.0,0.00010958,2]
[422318321,1778819439000,-500.0,0.00010958,2]
[422318311,1778819439000,-841.62,0.00010958,2]
[422318309,1778819439000,-151.217058,0.00010958,2]
[422318313,1778819439000,-500.0,0.00010958,2]
[422318329,1778819439000,-576.43,0.00010958,2]
[422318327,1778819439000,-500.0,0.00010958,2]
[422318331,1778819439000,-375.36591273,0.00010958,2]
[422318342,1778819439000,-500.0,0.00010958,2]
[422318335,1778819439000,-500.0,0.00010958,2]
[422318348,1778819439000,-500.0,0.00010958,2]
[422318346,1778819439000,-561.95,0.00010958,2]
[422318333,1778819439000,-212.24552428,0.00010958,2]
[422318336,1778819439000,-500.0,0.00010958,2]
[422318344,1778819439000,-500.0,0.00010958,2]
[422318338,1778819439000,-500.0,0.00010958,2]
[422318350,1778819439000,-500.0,0.00010958,2]
[422318416,1778819439000,-500.0,0.00010958,2]
[422318538,1778819439000,-727.18,0.00010958,2]
[422318414,1778819439000,-500.0,0.00010958,2]
[422318498,1778819439000,-500.0,0.00010958,2]
[422318488,1778819439000,-771.5,0.00010958,2]
[422318486,1778819439000,-500.0,0.00010958,2]
[422318490,1778819439000,-500.0,0.00010958,2]
[422318500,1778819439000,-500.0,0.00010958,2]
[422318505,1778819439000,-923.74,0.00010958,2]
[422318502,1778819439000,-649.73,0.00010958,2]
[422318519,1778819439000,-500.0,0.00010958,2]
[422318508,1778819439000,-636.23,0.00010958,2]
[422318521,1778819439000,-1031.07,0.00010958,2]
[422318510,1778819439000,-535.34,0.00010958,2]
[422318514,1778819439000,-500.0,0.00010958,2]
[422318525,1778819439000,-589.55,0.00010958,2]
[422318517,1778819439000,-648.62,0.00010958,2]
[422318512,1778819439000,-615.883589,0.00010958,2]
[422318523,1778819439000,-500.0,0.00010958,2]
[422318529,1778819439000,-1953.34,0.00010958,2]
[422318532,1778819439000,-500.0,0.00010958,2]
[422318534,1778819439000,-2079.21,0.00010958,2]
[422318536,1778819439000,-625.63,0.00010958,2]
[422318545,1778819439000,-505.17757721,0.00010958,2]
[422318540,1778819439000,-680.94,0.00010958,2]
[422318543,1778819439000,-506.91401672,0.00010958,2]
[422318542,1778819439000,-500.0,0.00010958,2]
[422318549,1778819439000,-500.0,0.00010958,2]
[422318548,1778819439000,-500.0,0.00010958,2]
[422318418,1778819439000,-500.0,0.00010958,2]
[422318492,1778819439000,-500.0,0.00010958,2]
[422318484,1778819439000,-767.54,0.00010958,2]
[422318527,1778819439000,-1705.38,0.00010958,2]
[422318482,1778819439000,-508.52416436,0.00010958,2]
[422318410,1778819439000,-507.56577481,0.00010958,2]
[422318496,1778819439000,-500.0,0.00010958,2]
[422318427,1778819439000,-500.0,0.00010958,2]
[422318425,1778819439000,-597.11,0.00010958,2]
[422318430,1778819439000,-663.55,0.00010958,2]
[422318431,1778819439000,-1358.85,0.00010958,2]
[422318436,1778819439000,-1941.08,0.00010958,2]
[422318434,1778819439000,-508.39460699,0.00010958,2]
[422318438,1778819439000,-737.46,0.00010958,2]
[422318444,1778819439000,-500.0,0.00010958,2]
[422318449,1778819439000,-1996.17,0.00010958,2]
[422318446,1778819439000,-500.0,0.00010958,2]
[422318442,1778819439000,-1072.78,0.00010958,2]
[422318451,1778819439000,-735.34,0.00010958,2]
[422318440,1778819439000,-622.18,0.00010958,2]
[422318479,1778819439000,-961.94,0.00010958,2]
[422318494,1778819439000,-4025.8,0.00010958,2]
[422318453,1778819439000,-635.22,0.00010958,2]
[422318467,1778819439000,-623.37,0.00010958,2]
[422318463,1778819439000,-500.0,0.00010958,2]
[422318465,1778819439000,-3860.59,0.00010958,2]
[422318477,1778819439000,-500.0,0.00010958,2]
[422318475,1778819439000,-749.48,0.00010958,2]
[422318472,1778819439000,-308.46786873,0.00010958,2]
[422318469,1778819439000,-500.0,0.00010958,2]
[422318459,1778819439000,-500.0,0.00010958,2]
[422318457,1778819439000,-507.94506139,0.00010958,2]
[422318455,1778819439000,-500.0,0.00010958,2]
[422318461,1778819439000,-506.9524399,0.00010958,2]
[422318633,1778819440000,-500.0,0.00010958,2]
[422318643,1778819440000,-514.83,0.00010958,2]
[422318635,1778819440000,-500.0,0.00010958,2]
[422318645,1778819440000,-500.0,0.00010958,2]
[422318637,1778819440000,-500.0,0.00010958,2]
[422318629,1778819440000,-500.0,0.00010958,2]
[422318609,1778819440000,-500.0,0.00010958,2]
[422318631,1778819440000,-205.81698484,0.00010958,2]
[422318627,1778819440000,-1793.53,0.00010958,2]
[422318621,1778819440000,-500.0,0.00010958,2]
[422318623,1778819440000,-500.0,0.00010958,2]
[422318641,1778819440000,-500.80133555,0.00010958,2]
[422318625,1778819440000,-500.0,0.00010958,2]
[422318639,1778819440000,-500.0,0.00010958,2]
[422318672,1778819440000,-500.0,0.00010958,2]
[422318649,1778819440000,-613.41,0.00010958,2]
[422318653,1778819440000,-500.0,0.00010958,2]
[422318647,1778819440000,-500.0,0.00010958,2]
[422318655,1778819440000,-4161.83,0.00010958,2]
[422318657,1778819440000,-527.61037153,0.00010958,2]
[422318660,1778819440000,-500.0,0.00010958,2]
[422318666,1778819440000,-500.0,0.00010958,2]
[422318664,1778819440000,-655.88,0.00010958,2]
[422318662,1778819440000,-500.0,0.00010958,2]
[422318659,1778819440000,-500.0,0.00010958,2]
[422318668,1778819440000,-500.0,0.00010958,2]
[422318670,1778819440000,-500.56123672,0.00010958,2]
[422318614,1778819440000,-646.7,0.00010958,2]
[422318650,1778819440000,-500.91355457,0.00010958,2]
[422318617,1778819440000,-201.83223518,0.00010958,2]
[422318555,1778819440000,-500.0,0.00010958,2]
[422318619,1778819440000,-470.50879571,0.00010958,2]
[422318553,1778819440000,-500.0,0.00010958,2]
[422318551,1778819440000,-500.0,0.00010958,2]
[422318557,1778819440000,-751.96,0.00010958,2]
[422318559,1778819440000,-500.0,0.00010958,2]
[422318571,1778819440000,-1622.88,0.00010958,2]
[422318572,1778819440000,-763.16,0.00010958,2]
[422318563,1778819440000,-500.0,0.00010958,2]
[422318565,1778819440000,-504.15448213,0.00010958,2]
[422318574,1778819440000,-500.0,0.00010958,2]
[422318561,1778819440000,-500.0,0.00010958,2]
[422318576,1778819440000,-500.0,0.00010958,2]
[422318567,1778819440000,-500.0,0.00010958,2]
[422318568,1778819440000,-341.99879692,0.00010958,2]
[422318579,1778819440000,-1184.05,0.00010958,2]
[422318580,1778819440000,-500.0,0.00010958,2]
[422318582,1778819440000,-500.0,0.00010958,2]
[422318584,1778819440000,-2333.65,0.00010958,2]
[422318595,1778819440000,-500.0,0.00010958,2]
[422318586,1778819440000,-500.0,0.00010958,2]
[422318588,1778819440000,-500.58898226,0.00010958,2]
[422318591,1778819440000,-505.20522495,0.00010958,2]
[422318597,1778819440000,-1906.73,0.00010958,2]
[422318599,1778819440000,-507.23,0.00010958,2]
[422318603,1778819440000,-500.0,0.00010958,2]
[422318593,1778819440000,-3956.0,0.00010958,2]
[422318605,1778819440000,-500.0,0.00010958,2]
[422318601,1778819440000,-497.60508909,0.00010958,2]
[422318607,1778819440000,-597.25,0.00010958,2]
[422318612,1778819440000,-500.0,0.00010958,2]
[422318611,1778819440000,-501.55913648,0.00010958,2]
[422318676,1778819440000,-500.0,0.00010958,2]
[422318674,1778819440000,-500.0,0.00010958,2]
[422318682,1778819440000,-1281.78,0.00010958,2]
[422318740,1778819440000,-500.0,0.00010958,2]
[422318744,1778819440000,-500.0,0.00010958,2]
[422318742,1778819440000,-1942.43,0.00010958,2]
[422318746,1778819440000,-500.0,0.00010958,2]
[422318757,1778819440000,-500.0,0.00010958,2]
[422318759,1778819440000,-646.72,0.00010958,2]
[422318761,1778819440000,-500.0,0.00010958,2]
[422318763,1778819440000,-500.0,0.00010958,2]
[422318765,1778819440000,-500.0,0.00010958,2]
[422318775,1778819440000,-500.0,0.00010958,2]
[422318767,1778819440000,-1165.42,0.00010958,2]
[422318777,1778819440000,-5992.69,0.00010958,2]
[422318783,1778819440000,-688.3,0.00010958,2]
[422318781,1778819440000,-500.0,0.00010958,2]
[422318785,1778819440000,-1835.21,0.00010958,2]
[422318771,1778819440000,-500.0,0.00010958,2]
[422318787,1778819440000,-500.0,0.00010958,2]
[422318779,1778819440000,-500.0,0.00010958,2]
[422318773,1778819440000,-500.0,0.00010958,2]
[422318789,1778819440000,-500.0,0.00010958,2]
[422318793,1778819440000,-4288.24,0.00010958,2]
[422318798,1778819440000,-3121.99,0.00010958,2]
[422318797,1778819440000,-500.0,0.00010958,2]
[422318795,1778819440000,-871.73,0.00010958,2]
[422318800,1778819440000,-9446.99,0.00010958,2]
[422318791,1778819440000,-500.0,0.00010958,2]
[422318802,1778819440000,-500.0,0.00010958,2]
[422318804,1778819440000,-211.12075366,0.00010958,2]
[422318678,1778819440000,-502.26046536,0.00010958,2]
[422318750,1778819440000,-3623.66,0.00010958,2]
[422318738,1778819440000,-6611.82,0.00010958,2]
[422318769,1778819440000,-500.0,0.00010958,2]
[422318752,1778819440000,-3708.18,0.00010958,2]
[422318755,1778819440000,-1581.97,0.00010958,2]
[422318684,1778819440000,-500.0,0.00010958,2]
[422318688,1778819440000,-500.0,0.00010958,2]
[422318689,1778819440000,-500.0,0.00010958,2]
[422318691,1778819440000,-704.38,0.00010958,2]
[422318686,1778819440000,-500.0,0.00010958,2]
[422318695,1778819440000,-500.0,0.00010958,2]
[422318704,1778819440000,-500.0,0.00010958,2]
[422318698,1778819440000,-500.0,0.00010958,2]
[422318700,1778819440000,-358.37311891,0.00010958,2]
[422318697,1778819440000,-500.0,0.00010958,2]